fUST/lending_fUST_20260513
["ID","MTS","AMOUNT","RATE_DAILY","PERIOD"]
[422169859,1778644241000,-500.0,0.00010958,2]
[422169855,1778644241000,-1400.28,0.00010958,2]
[422169853,1778644241000,-732.27,0.00010958,2]
[422169873,1778644241000,-500.0,0.00010958,2]
[422169869,1778644241000,-500.0,0.00010958,2]
[422169871,1778644241000,-500.0,0.00010958,2]
[422169888,1778644241000,-2626.72,0.00010958,2]
[422169882,1778644241000,-500.0,0.00010958,2]
[422169878,1778644241000,-500.0,0.00010958,2]
[422169880,1778644241000,-500.0,0.00010958,2]
[422169886,1778644241000,-500.0,0.00010958,2]
[422169896,1778644241000,-500.0,0.00010958,2]
[422169892,1778644241000,-500.0,0.00010958,2]
[422169884,1778644241000,-2068.82,0.00010958,2]
[422169876,1778644241000,-500.0,0.00010958,2]
[422169894,1778644241000,-2829.91,0.00010958,2]
[422169890,1778644241000,-500.0,0.00010958,2]
[422169756,1778644241000,-500.0,0.00010958,2]
[422169844,1778644241000,-500.0,0.00010958,2]
[422169829,1778644241000,-500.0,0.00010958,2]
[422169857,1778644241000,-500.0,0.00010958,2]
[422169839,1778644241000,-500.0,0.00010958,2]
[422169831,1778644241000,-7333.81,0.00010958,2]
[422169774,1778644241000,-500.0,0.00010958,2]
[422169776,1778644241000,-500.0,0.00010958,2]
[422169784,1778644241000,-781.26,0.00010958,2]
[422169788,1778644241000,-500.0,0.00010958,2]
[422169786,1778644241000,-500.0,0.00010958,2]
[422169792,1778644241000,-500.0,0.00010958,2]
[422169790,1778644241000,-500.0,0.00010958,2]
[422169778,1778644241000,-500.0,0.00010958,2]
[422169780,1778644241000,-3233.49,0.00010958,2]
[422169782,1778644241000,-500.0,0.00010958,2]
[422169794,1778644241000,-2415.7,0.00010958,2]
[422169796,1778644241000,-500.0,0.00010958,2]
[422169802,1778644241000,-1601.15,0.00010958,2]
[422169798,1778644241000,-500.0,0.00010958,2]
[422169771,1778644241000,-217.68901601,0.00010958,2]
[422169812,1778644241000,-1144.9,0.00010958,2]
[422169804,1778644241000,-500.0,0.00010958,2]
[422169822,1778644241000,-385.80655985,0.00010958,2]
[422169806,1778644241000,-500.0,0.00010958,2]
[422169814,1778644241000,-500.0,0.00010958,2]
[422169820,1778644241000,-500.0,0.00010958,2]
[422169818,1778644241000,-500.0,0.00010958,2]
[422169816,1778644241000,-500.0,0.00010958,2]
[422169810,1778644241000,-569.79,0.00010958,2]
[422169800,1778644241000,-500.0,0.00010958,2]
[422169824,1778644241000,-500.0,0.00010958,2]
[422169808,1778644241000,-500.0,0.00010958,2]
[422169825,1778644241000,-2278.95,0.00010958,2]
[422169827,1778644241000,-500.0,0.00010958,2]
[422169951,1778644242000,-500.0,0.00010958,2]
[422169974,1778644242000,-1756.65,0.00010958,2]
[422169965,1778644242000,-1712.05,0.00010958,2]
[422169980,1778644242000,-3437.55,0.00010958,2]
[422169976,1778644242000,-42426.44,0.00010958,2]
[422169955,1778644242000,-500.0,0.00010958,2]
[422169967,1778644242000,-500.0,0.00010958,2]
[422169971,1778644242000,-500.0,0.00010958,2]
[422169953,1778644242000,-500.0,0.00010958,2]
[422169957,1778644242000,-500.0,0.00010958,2]
[422169959,1778644242000,-939.04,0.00010958,2]
[422169969,1778644242000,-500.0,0.00010958,2]
[422169978,1778644242000,-500.0,0.00010958,2]
[422169972,1778644242000,-500.0,0.00010958,2]
[422169982,1778644242000,-500.0,0.00010958,2]
[422169996,1778644242000,-500.0,0.00010958,2]
[422169992,1778644242000,-699.96,0.00010958,2]
[422169990,1778644242000,-554.92,0.00010958,2]
[422169986,1778644242000,-500.0,0.00010958,2]
[422169988,1778644242000,-8167.9,0.00010958,2]
[422169994,1778644242000,-500.0,0.00010958,2]
[422170000,1778644242000,-507.94913452,0.00010958,2]
[422169998,1778644242000,-500.0,0.00010958,2]
[422170022,1778644242000,-506.8573627,0.00010958,2]
[422170026,1778644242000,-3876.59,0.00010958,2]
[422170012,1778644242000,-591.51,0.00010958,2]
[422170016,1778644242000,-2434.27,0.00010958,2]
[422170024,1778644242000,-500.0,0.00010958,2]
[422170018,1778644242000,-500.0,0.00010958,2]
[422169984,1778644242000,-980.34,0.00010958,2]
[422169963,1778644242000,-1559.59,0.00010958,2]
[422170014,1778644242000,-500.0,0.00010958,2]
[422169950,1778644242000,-4758.86,0.00010958,2]
[422169898,1778644242000,-1093.88,0.00010958,2]
[422169902,1778644242000,-500.0,0.00010958,2]
[422169900,1778644242000,-8017.85,0.00010958,2]
[422169918,1778644242000,-500.0,0.00010958,2]
[422169922,1778644242000,-500.0,0.00010958,2]
[422169911,1778644242000,-500.0,0.00010958,2]
[422169923,1778644242000,-500.0,0.00010958,2]
[422169904,1778644242000,-1533.66,0.00010958,2]
[422169916,1778644242000,-996.23,0.00010958,2]
[422169914,1778644242000,-500.0,0.00010958,2]
[422169906,1778644242000,-500.0,0.00010958,2]
[422169913,1778644242000,-5615.95,0.00010958,2]
[422169910,1778644242000,-1566.35,0.00010958,2]
[422169909,1778644242000,-324.91331397,0.00010958,2]
[422169908,1778644242000,-6392.09,0.00010958,2]
[422169912,1778644242000,-1904.07,0.00010958,2]
[422169925,1778644242000,-2367.8,0.00010958,2]
[422169935,1778644242000,-500.0,0.00010958,2]
[422169927,1778644242000,-500.0,0.00010958,2]
[422169937,1778644242000,-210.15492703,0.00010958,2]
[422169940,1778644242000,-500.0,0.00010958,2]
[422169938,1778644242000,-500.0,0.00010958,2]
[422169942,1778644242000,-2019.38,0.00010958,2]
[422169929,1778644242000,-500.0,0.00010958,2]
[422169931,1778644242000,-500.0,0.00010958,2]
[422169933,1778644242000,-500.0,0.00010958,2]
[422169946,1778644242000,-500.0,0.00010958,2]
[422169944,1778644242000,-500.0,0.00010958,2]
[422169948,1778644242000,-500.0,0.00010958,2]
[422169961,1778644242000,-500.0,0.00010958,2]
[422170008,1778644242000,-500.0,0.00010958,2]
[422169920,1778644242000,-5912.39,0.00010958,2]
[422170002,1778644242000,-2226.64,0.00010958,2]
[422170099,1778644242000,-1341.03,0.00011232,2]
[422170082,1778644242000,-532.51704449,0.00011132,2]
[422170088,1778644242000,-151.0,0.000112,2]
[422170093,1778644242000,-3706.784,0.00011232,2]
[422170080,1778644242000,-600.0,0.00011117,2]
[422170095,1778644242000,-500.0,0.00011232,2]
[422170084,1778644242000,-155.0,0.00011175,2]
[422170089,1778644242000,-151.0,0.000112,2]
[422170105,1778644242000,-500.0,0.00011232,2]
[422170103,1778644242000,-500.0,0.00011232,2]
[422170101,1778644242000,-500.0,0.00011232,2]
[422170107,1778644242000,-500.0,0.00011232,2]
[422170109,1778644242000,-500.0,0.00011232,2]
[422170111,1778644242000,-500.0,0.00011232,2]
[422170097,1778644242000,-581.29,0.00011232,2]
[422170125,1778644242000,-500.0,0.00011232,2]
[422170115,1778644242000,-1172.83,0.00011232,2]
[422170122,1778644242000,-1301.05,0.00011232,2]
[422170117,1778644242000,-500.0,0.00011232,2]
[422170120,1778644242000,-500.0,0.00011232,2]
[422170119,1778644242000,-500.0,0.00011232,2]
[422170140,1778644242000,-501.26176729,0.00011232,2]
[422170123,1778644242000,-169.59765073,0.00011232,2]
[422170127,1778644242000,-607.17102537,0.00011232,2]
[422170129,1778644242000,-1549.91,0.00011232,2]
[422170134,1778644242000,-500.0,0.00011232,2]
[422170138,1778644242000,-502.09582037,0.00011232,2]
[422170136,1778644242000,-500.0,0.00011232,2]
[422170131,1778644242000,-500.0,0.00011232,2]
[422170010,1778644242000,-813.31,0.00010958,2]
[422170113,1778644242000,-500.0,0.00011232,2]
[422170086,1778644242000,-1209.11068013,0.000112,2]
[422170132,1778644242000,-500.0,0.00011232,2]
[422170078,1778644242000,-151.0,0.000111,2]
[422170091,1778644242000,-151.0,0.000112,2]
[422170006,1778644242000,-500.0,0.00010958,2]
[422170020,1778644242000,-500.0,0.00010958,2]
[422170029,1778644242000,-500.0,0.00010958,2]
[422170031,1778644242000,-500.0,0.00010958,2]
[422170033,1778644242000,-507.78764053,0.00010958,2]
[422170035,1778644242000,-500.0,0.00010958,2]
[422170028,1778644242000,-218.84466342,0.00010958,2]
[422170039,1778644242000,-6651.46,0.00010958,2]
[422170037,1778644242000,-2417.04,0.00010958,2]
[422170047,1778644242000,-505.01587889,0.00010958,2]
[422170043,1778644242000,-500.0,0.00010958,2]
[422170045,1778644242000,-501.09663029,0.00010958,2]
[422170041,1778644242000,-1093.68,0.00010958,2]
[422170051,1778644242000,-5951.62,0.00010958,2]
[422170004,1778644242000,-500.0,0.00010958,2]
[422170053,1778644242000,-500.0,0.00010958,2]
[422170049,1778644242000,-3028.05,0.00010958,2]
[422170076,1778644242000,-151.0,0.000111,2]
[422170067,1778644242000,-181.4421227,0.00011015,2]
[422170071,1778644242000,-532.51704449,0.00011064,2]
[422170065,1778644242000,-1209.11068013,0.00011,2]
[422170072,1778644242000,-155.0,0.00011066,2]
[422170069,1778644242000,-4895.85292202,0.00011048,2]
[422170062,1778644242000,-152.0,0.00010966,2]
[422170060,1778644242000,-152.0,0.00010966,2]
[422170063,1778644242000,-532.51704449,0.00010995,2]
[422170056,1778644242000,-1563.0,0.0001096,2]
[422170058,1778644242000,-578.20924308,0.0001096,2]
[422170074,1778644242000,-1209.11068013,0.000111,2]
[422170054,1778644242000,-414.026,0.00010959,2]
[422170223,1778644243000,-500.0,0.00011232,2]
[422170221,1778644243000,-507.02846918,0.00011232,2]
[422170227,1778644243000,-506.21729522,0.00011232,2]
[422170224,1778644243000,-1216.67,0.00011232,2]
[422170218,1778644243000,-638.85739161,0.00011232,2]
[422170210,1778644243000,-504.98026218,0.00011232,2]
[422170212,1778644243000,-504.33679831,0.00011232,2]
[422170208,1778644243000,-506.35170582,0.00011232,2]
[422170206,1778644243000,-705.26,0.00011232,2]
[422170217,1778644243000,-500.0,0.00011232,2]
[422170202,1778644243000,-500.0,0.00011232,2]
[422170215,1778644243000,-508.75625689,0.00011232,2]
[422170204,1778644243000,-420.93286931,0.00011232,2]
[422170239,1778644243000,-501.92291487,0.00011232,2]
[422170226,1778644243000,-677.26,0.00011232,2]
[422170235,1778644243000,-2579.17,0.00011232,2]
[422170234,1778644243000,-500.0,0.00011232,2]
[422170232,1778644243000,-565.46,0.00011232,2]
[422170237,1778644243000,-500.0,0.00011232,2]
[422170251,1778644243000,-514.94869936,0.00011232,2]
[422170249,1778644243000,-500.0,0.00011232,2]
[422170269,1778644243000,-500.0,0.00011232,2]
[422170257,1778644243000,-594.22,0.00011232,2]
[422170267,1778644243000,-1335.89,0.00011232,2]
[422170255,1778644243000,-500.0,0.00011232,2]
[422170200,1778644243000,-740.05,0.00011232,2]
[422170263,1778644243000,-504.08212196,0.00011232,2]
[422170229,1778644243000,-506.36619472,0.00011232,2]
[422170186,1778644243000,-2755.23,0.00011232,2]
[422170167,1778644243000,-500.0,0.00011232,2]
[422170196,1778644243000,-507.60031004,0.00011232,2]
[422170253,1778644243000,-507.72546705,0.00011232,2]
[422170142,1778644243000,-501.08046459,0.00011232,2]
[422170147,1778644243000,-431.62884342,0.00011232,2]
[422170144,1778644243000,-797.91,0.00011232,2]
[422170145,1778644243000,-502.64265946,0.00011232,2]
[422170149,1778644243000,-500.0,0.00011232,2]
[422170163,1778644243000,-500.0,0.00011232,2]
[422170169,1778644243000,-506.91749151,0.00011232,2]
[422170153,1778644243000,-898.73,0.00011232,2]
[422170151,1778644243000,-357.5726773,0.00011232,2]
[422170155,1778644243000,-500.0,0.00011232,2]
[422170157,1778644243000,-502.21766428,0.00011232,2]
[422170159,1778644243000,-506.89354135,0.00011232,2]
[422170161,1778644243000,-539.28345776,0.00011232,2]
[422170165,1778644243000,-500.0,0.00011232,2]
[422170172,1778644243000,-501.76968055,0.00011232,2]
[422170171,1778644243000,-500.0,0.00011232,2]
[422170174,1778644243000,-154.32718939,0.00011232,2]
[422170176,1778644243000,-794.83,0.00011232,2]
[422170179,1778644243000,-540.29001046,0.00011232,2]
[422170181,1778644243000,-498.84954445,0.00011232,2]
[422170182,1778644243000,-508.93316184,0.00011232,2]
[422170188,1778644243000,-500.0,0.00011232,2]
[422170190,1778644243000,-453.56659187,0.00011232,2]
[422170184,1778644243000,-500.0,0.00011232,2]
[422170192,1778644243000,-500.0,0.00011232,2]
[422170198,1778644243000,-500.0,0.00011232,2]
[422170194,1778644243000,-500.0,0.00011232,2]
[422170259,1778644243000,-500.0,0.00011232,2]
[422170261,1778644243000,-12497.135947,0.00011232,2]
[422170356,1778644243000,-500.0,0.00011232,2]
[422170332,1778644243000,-500.0,0.00011232,2]
[422170338,1778644243000,-819.18,0.00011232,2]
[422170346,1778644243000,-504.93329687,0.00011232,2]
[422170326,1778644243000,-549.037283,0.00011232,2]
[422170340,1778644243000,-500.0,0.00011232,2]
[422170336,1778644243000,-490.53887334,0.00011232,2]
[422170342,1778644243000,-500.0,0.00011232,2]
[422170348,1778644243000,-330.11549763,0.00011232,2]
[422170350,1778644243000,-500.0,0.00011232,2]
[422170352,1778644243000,-500.0,0.00011232,2]
[422170354,1778644243000,-500.0,0.00011232,2]
[422170358,1778644243000,-506.89409882,0.00011232,2]
[422170366,1778644243000,-500.0,0.00011232,2]
[422170360,1778644243000,-500.0,0.00011232,2]
[422170368,1778644243000,-500.0,0.00011232,2]
[422170365,1778644243000,-500.0,0.00011232,2]
[422170362,1778644243000,-1615.45,0.00011232,2]
[422170370,1778644243000,-503.18293579,0.00011232,2]
[422170372,1778644243000,-500.0,0.00011232,2]
[422170374,1778644243000,-504.84485249,0.00011232,2]
[422170376,1778644243000,-613.78,0.00011232,2]
[422170381,1778644243000,-500.0,0.00011232,2]
[422170380,1778644243000,-500.0,0.00011232,2]
[422170382,1778644243000,-500.0,0.00011232,2]
[422170378,1778644243000,-3530.57,0.00011232,2]
[422170383,1778644243000,-6655.88,0.00011232,2]
[422170265,1778644243000,-505.2321165,0.00011232,2]
[422170334,1778644243000,-502.04618265,0.00011232,2]
[422170330,1778644243000,-610.37,0.00011232,2]
[422170344,1778644243000,-500.0,0.00011232,2]
[422170324,1778644243000,-500.0,0.00011232,2]
[422170272,1778644243000,-537.48263527,0.00011232,2]
[422170270,1778644243000,-500.0,0.00011232,2]
[422170285,1778644243000,-724.79,0.00011232,2]
[422170287,1778644243000,-500.0,0.00011232,2]
[422170274,1778644243000,-830.52,0.00011232,2]
[422170289,1778644243000,-500.0,0.00011232,2]
[422170276,1778644243000,-500.0,0.00011232,2]
[422170291,1778644243000,-500.0,0.00011232,2]
[422170328,1778644243000,-506.78934854,0.00011232,2]
[422170278,1778644243000,-1093.33,0.00011232,2]
[422170280,1778644243000,-506.81773882,0.00011232,2]
[422170295,1778644243000,-2729.94,0.00011232,2]
[422170282,1778644243000,-588.92338329,0.00011232,2]
[422170297,1778644243000,-504.636062,0.00011232,2]
[422170293,1778644243000,-1725.01,0.00011232,2]
[422170312,1778644243000,-1068.5,0.00011232,2]
[422170299,1778644243000,-500.0,0.00011232,2]
[422170322,1778644243000,-500.0,0.00011232,2]
[422170310,1778644243000,-509.00966205,0.00011232,2]
[422170307,1778644243000,-500.0,0.00011232,2]
[422170308,1778644243000,-505.44699049,0.00011232,2]
[422170320,1778644243000,-500.0,0.00011232,2]
[422170305,1778644243000,-500.0,0.00011232,2]
[422170301,1778644243000,-597.63624571,0.00011232,2]
[422170314,1778644243000,-2800.72,0.00011232,2]
[422170316,1778644243000,-507.3702144,0.00011232,2]
[422170318,1778644243000,-490.21618444,0.00011232,2]
[422170303,1778644243000,-500.0,0.00011232,2]
[422170482,1778644244000,-949.49,0.00011232,2]
[422170471,1778644244000,-732.27,0.00011232,2]
[422170466,1778644244000,-536.8417808,0.00011232,2]
[422170469,1778644244000,-504.62466721,0.00011232,2]
[422170467,1778644244000,-2865.08,0.00011232,2]
[422170463,1778644244000,-504.7570921,0.00011232,2]
[422170460,1778644244000,-504.99692368,0.00011232,2]
[422170461,1778644244000,-503.4985122,0.00011232,2]
[422170447,1778644244000,-2278.95,0.00011232,2]
[422170456,1778644244000,-500.0,0.00011232,2]
[422170458,1778644244000,-503.72479915,0.00011232,2]
[422170483,1778644244000,-2435.48,0.00011232,2]
[422170452,1778644244000,-500.90689734,0.00011232,2]
[422170485,1778644244000,-503.10547212,0.00011232,2]
[422170511,1778644244000,-2829.91,0.00011232,2]
[422170489,1778644244000,-505.94101998,0.00011232,2]
[422170473,1778644244000,-1400.28,0.00011232,2]
[422170491,1778644244000,-491.15654834,0.00011232,2]
[422170475,1778644244000,-500.0,0.00011232,2]
[422170477,1778644244000,-505.10142106,0.00011232,2]
[422170480,1778644244000,-502.15044889,0.00011232,2]
[422170493,1778644244000,-504.86293084,0.00011232,2]
[422170495,1778644244000,-501.64866725,0.00011232,2]
[422170497,1778644244000,-504.18289591,0.00011232,2]
[422170506,1778644244000,-2626.72,0.00011232,2]
[422170499,1778644244000,-500.0,0.00011232,2]
[422170501,1778644244000,-2068.82,0.00011232,2]
[422170450,1778644244000,-501.6778749,0.00011232,2]
[422170487,1778644244000,-501.13172564,0.00011232,2]
[422170446,1778644244000,-500.0,0.00011232,2]
[422170386,1778644244000,-500.0,0.00011232,2]
[422170454,1778644244000,-7333.81,0.00011232,2]
[422170384,1778644244000,-500.0,0.00011232,2]
[422170390,1778644244000,-507.74942444,0.00011232,2]
[422170394,1778644244000,-1659.52,0.00011232,2]
[422170392,1778644244000,-503.92046626,0.00011232,2]
[422170388,1778644244000,-500.0,0.00011232,2]
[422170395,1778644244000,-507.06741345,0.00011232,2]
[422170398,1778644244000,-500.0,0.00011232,2]
[422170399,1778644244000,-500.0,0.00011232,2]
[422170413,1778644244000,-500.0,0.00011232,2]
[422170407,1778644244000,-502.10948997,0.00011232,2]
[422170403,1778644244000,-500.0,0.00011232,2]
[422170405,1778644244000,-781.26,0.00011232,2]
[422170402,1778644244000,-3233.49,0.00011232,2]
[422170443,1778644244000,-478.13608407,0.00011232,2]
[422170410,1778644244000,-500.0,0.00011232,2]
[422170417,1778644244000,-483.10584545,0.00011232,2]
[422170415,1778644244000,-2415.7,0.00011232,2]
[422170421,1778644244000,-500.0,0.00011232,2]
[422170432,1778644244000,-1144.9,0.00011232,2]
[422170430,1778644244000,-569.79,0.00011232,2]
[422170419,1778644244000,-500.0,0.00011232,2]
[422170423,1778644244000,-1601.15,0.00011232,2]
[422170426,1778644244000,-500.0,0.00011232,2]
[422170436,1778644244000,-500.0,0.00011232,2]
[422170428,1778644244000,-500.0,0.00011232,2]
[422170425,1778644244000,-501.14862988,0.00011232,2]
[422170434,1778644244000,-505.36342936,0.00011232,2]
[422170439,1778644244000,-500.0,0.00011232,2]
[422170411,1778644244000,-500.0,0.00011232,2]
[422170508,1778644244000,-500.0,0.00011232,2]
[422170385,1778644244000,-500.0,0.00011232,2]
[422170510,1778644244000,-500.0,0.00011232,2]
[422170586,1778644244000,-1559.59,0.00011232,2]
[422170594,1778644244000,-503.52710109,0.00011232,2]
[422170590,1778644244000,-500.71435333,0.00011232,2]
[422170579,1778644244000,-505.02374079,0.00011232,2]
[422170588,1778644244000,-1712.05,0.00011232,2]
[422170592,1778644244000,-500.0,0.00011232,2]
[422170582,1778644244000,-939.04,0.00011232,2]
[422170584,1778644244000,-507.16268674,0.00011232,2]
[422170598,1778644244000,-1756.65,0.00011232,2]
[422170600,1778644244000,-42426.44,0.00011232,2]
[422170596,1778644244000,-506.36768988,0.00011232,2]
[422170602,1778644244000,-506.79661848,0.00011232,2]
[422170604,1778644244000,-3437.55,0.00011232,2]
[422170606,1778644244000,-506.00897836,0.00011232,2]
[422170616,1778644244000,-699.96,0.00011232,2]
[422170608,1778644244000,-980.34,0.00011232,2]
[422170624,1778644244000,-2226.64,0.00011232,2]
[422170618,1778644244000,-519.00216197,0.00011232,2]
[422170612,1778644244000,-8167.9,0.00011232,2]
[422170610,1778644244000,-510.1522329,0.00011232,2]
[422170622,1778644244000,-505.22135693,0.00011232,2]
[422170620,1778644244000,-500.0,0.00011232,2]
[422170626,1778644244000,-504.98482984,0.00011232,2]
[422170628,1778644244000,-501.05172623,0.00011232,2]
[422170632,1778644244000,-813.31,0.00011232,2]
[422170636,1778644244000,-507.68569694,0.00011232,2]
[422170630,1778644244000,-505.59743679,0.00011232,2]
[422170634,1778644244000,-591.51,0.00011232,2]
[422170503,1778644244000,-501.14963887,0.00011232,2]
[422170578,1778644244000,-322.58910086,0.00011232,2]
[422170576,1778644244000,-500.0,0.00011232,2]
[422170614,1778644244000,-554.92,0.00011232,2]
[422170557,1778644244000,-500.0,0.00011232,2]
[422170513,1778644244000,-510.5930604,0.00011232,2]
[422170574,1778644244000,-504.58614579,0.00011232,2]
[422170515,1778644244000,-1093.88,0.00011232,2]
[422170517,1778644244000,-8017.85,0.00011232,2]
[422170519,1778644244000,-427.87725892,0.00011232,2]
[422170521,1778644244000,-1533.66,0.00011232,2]
[422170525,1778644244000,-6392.09,0.00011232,2]
[422170523,1778644244000,-500.0,0.00011232,2]
[422170527,1778644244000,-1566.35,0.00011232,2]
[422170532,1778644244000,-1904.07,0.00011232,2]
[422170534,1778644244000,-5615.95,0.00011232,2]
[422170539,1778644244000,-507.14790146,0.00011232,2]
[422170541,1778644244000,-5912.39,0.00011232,2]
[422170536,1778644244000,-503.605738,0.00011232,2]
[422170538,1778644244000,-996.23,0.00011232,2]
[422170530,1778644244000,-426.67962847,0.00011232,2]
[422170568,1778644244000,-508.96947203,0.00011232,2]
[422170570,1778644244000,-506.04685367,0.00011232,2]
[422170545,1778644244000,-500.0,0.00011232,2]
[422170556,1778644244000,-500.0,0.00011232,2]
[422170572,1778644244000,-4758.86,0.00011232,2]
[422170551,1778644244000,-500.0,0.00011232,2]
[422170566,1778644244000,-502.08792902,0.00011232,2]
[422170553,1778644244000,-500.0,0.00011232,2]
[422170562,1778644244000,-500.0,0.00011232,2]
[422170560,1778644244000,-500.0,0.00011232,2]
[422170549,1778644244000,-500.0,0.00011232,2]
[422170547,1778644244000,-2367.8,0.00011232,2]
[422170543,1778644244000,-506.93262024,0.00011232,2]
[422170564,1778644244000,-2019.38,0.00011232,2]
[422170721,1778644245000,-500.0,0.00011506,2]
[422170727,1778644245000,-500.0,0.00011506,2]
[422170723,1778644245000,-500.0,0.00011506,2]
[422170731,1778644245000,-500.0,0.00011506,2]
[422170725,1778644245000,-500.0,0.00011506,2]
[422170720,1778644245000,-1341.03,0.00011506,2]
[422170706,1778644245000,-3706.784,0.00011506,2]
[422170716,1778644245000,-500.0,0.00011506,2]
[422170714,1778644245000,-6136.41809045,0.00011506,2]
[422170710,1778644245000,-1449.51648441,0.00011506,2]
[422170718,1778644245000,-581.29,0.00011506,2]
[422170708,1778644245000,-682.50673901,0.00011506,2]
[422170729,1778644245000,-500.0,0.00011506,2]
[422170712,1778644245000,-2730.02695605,0.00011506,2]
[422170733,1778644245000,-500.0,0.00011506,2]
[422170761,1778644245000,-500.0,0.00011506,2]
[422170737,1778644245000,-500.0,0.00011506,2]
[422170739,1778644245000,-500.0,0.00011506,2]
[422170743,1778644245000,-1301.05,0.00011506,2]
[422170741,1778644245000,-500.0,0.00011506,2]
[422170746,1778644245000,-1549.91,0.00011506,2]
[422170752,1778644245000,-500.0,0.00011506,2]
[422170748,1778644245000,-500.0,0.00011506,2]
[422170755,1778644245000,-598.95017172,0.00011506,2]
[422170757,1778644245000,-500.0,0.00011506,2]
[422170750,1778644245000,-500.0,0.00011506,2]
[422170745,1778644245000,-500.0,0.00011506,2]
[422170771,1778644245000,-500.0,0.00011506,2]
[422170759,1778644245000,-797.91,0.00011506,2]
[422170704,1778644245000,-362.74186297,0.00011506,2]
[422170735,1778644245000,-1172.83,0.00011506,2]
[422170702,1778644245000,-155.0,0.00011504,2]
[422170646,1778644245000,-3876.59,0.00011232,2]
[422170691,1778644245000,-151.0,0.000114,2]
[422170644,1778644245000,-512.95447075,0.00011232,2]
[422170775,1778644245000,-2755.23,0.00011506,2]
[422170638,1778644245000,-2434.27,0.00011232,2]
[422170648,1778644245000,-503.92982949,0.00011232,2]
[422170640,1778644245000,-500.0,0.00011232,2]
[422170643,1778644245000,-500.0,0.00011232,2]
[422170652,1778644245000,-500.0,0.00011232,2]
[422170654,1778644245000,-2417.04,0.00011232,2]
[422170650,1778644245000,-507.16032056,0.00011232,2]
[422170667,1778644245000,-152.0,0.00011249,2]
[422170658,1778644245000,-1093.68,0.00011232,2]
[422170671,1778644245000,-155.0,0.00011285,2]
[422170660,1778644245000,-500.0,0.00011232,2]
[422170669,1778644245000,-912.70124862,0.00011276,2]
[422170689,1778644245000,-151.0,0.000114,2]
[422170673,1778644245000,-9647.1618746,0.00011291,2]
[422170661,1778644245000,-3028.05,0.00011232,2]
[422170677,1778644245000,-151.0,0.000113,2]
[422170663,1778644245000,-5951.62,0.00011232,2]
[422170665,1778644245000,-500.0,0.00011232,2]
[422170679,1778644245000,-151.0,0.000113,2]
[422170693,1778644245000,-151.0,0.000114,2]
[422170695,1778644245000,-151.0,0.000114,2]
[422170681,1778644245000,-151.0,0.000113,2]
[422170683,1778644245000,-600.0,0.00011347,2]
[422170699,1778644245000,-151.0,0.000115,2]
[422170697,1778644245000,-50980.0,0.000115,2]
[422170700,1778644245000,-151.0,0.000115,2]
[422170687,1778644245000,-155.0,0.00011394,2]
[422170685,1778644245000,-175.2044,0.00011369,2]
[422170675,1778644245000,-151.0,0.000113,2]
[422170773,1778644245000,-794.83,0.00011506,2]
[422170656,1778644245000,-6651.46,0.00011232,2]
[422170769,1778644245000,-500.0,0.00011506,2]
[422170836,1778644245000,-1068.5,0.00011506,2]